Workbook

Sheet BUDGET et REALITéS
D1: BUDGETS 2024-2025 et REALITES 2019-2020-2021-2022-2023-2024
E2: BUDGETS 2024-2025 | G2: EXERCICE 2023-2024 | I2: EXERCICE 2022-2023 | K2: EXERCICE 2021-2022 | M2: EXERCICE 2020-2021 | O2: EXERCICE 2019-2020
E3: Prévisions | G3: Réalités | I3: Réalités | K3: Réalités | M3: Réalités | O3: Réalités
A4: N° analytique | B4: PCMN | C4: Anal | D4: Intitulés | E4: Montants | G4: Montants | K4: Montants | M4: Montants | O4: Montants | Q4: Remarques
D6: RESULTATS = RECETTES - DEPENSES | E6: =E8-E35 -> 241 | G6: =G8-G35 -> 9399.09 | I6: =I8-I35 -> 5100.56 | K6: =K8-K35 -> -671.59 | M6: =M8-M35 -> 1533.46 | O6: =O8-O35 -> 11077.2
D8: RECETTES | E8: =E10+E19+E25+E28 -> 46171 | G8: =G10+G19+G25+G28 -> 69216.33 | I8: =I10+I19+I25+I28 -> 65666.87 | K8: =K10+K19+K25+K28 -> 57489 | M8: =M10+M19+M25+M28 -> 48604.66 | O8: =O10+O19+O25+O28 -> 56257.79
D10: RECETTES PROPRES A L'ASBL | E10: =SUM(E11:E17) -> 40121 | G10: =SUM(G11:G17) -> 41194 | I10: =SUM(I11:I17) -> 39921.5 | K10: =SUM(K11:K17) -> 33964 | M10: =SUM(M11:M17) -> 23514.84 | O10: =SUM(O11:O17) -> 31934
A11: 700 | B11: 700100 | C11: 700 | D11: Cotisations payées par les cercles | E11: 32751 | G11: 34925 | I11: 35960 | K11: 31620 | M11: 21274 | O11: 30878 | Q11: 30325 des décomptes provisoires + 8%
A13: 70 | C13: 701 | D13: Formation animateurs | E13: 3000 | G13: 1620 | Q13: Deux formations (Module 1 et 2)
A14: 151 | B14: 704400 | C14: 151 | D14: Inscription juniors pour les interscolaires | E14: 2300 | G14: 2305 | I14: 1887 | K14: 1044 | M14: 740.84 | O14: 1056
C15: 151 | D15: Sponsoring IE | I15: 150
C16: 151 | D16: Recettes diverses | G16: 274 | I16: 449.5
A17: 150 | B17: 705100 | C17: 150 | D17: Inscription intercercles francophones | E17: 2070 | G17: 2070 | I17: 1475 | K17: 1300 | M17: 1500 | O17: 0 | Q17: On espère le même nombre d'équipes
Q18: Augmentation coût inscriptions était correcte
D19: Subsides Echecs dans les écoles | E19: =SUM(E20:E23) -> 5000 | G19: =G20+G22+G23 -> 26000 | I19: =I20 -> 25000 | K19: =K20 -> 23000 | M19: =M20 -> 25000 | O19: =O20 -> 23190
A20: 800 | B20: 710000 | C20: 800 | D20: Subside de la Fédération Wallonie Bruxelles | E20: 0 | G20: 15000 | I20: 25000 | K20: 23000 | M20: 25000 | O20: 23190 | Q20: Rien ne peut être espéré pour l'intsnat
C21: 800 | D21: Report 2023_2024 pour matériel dans les écoles | E21: 5000
A22: 802 | C22: 802 | D22: Subside spécial (Avant-saison) | E22: 0 | G22: 5000
C23: 802 | D23: Subside spécial (Cassette Ministre) | E23: 0 | G23: 6000
D25: Projet "Echecs au féminin" | E25: =E26 -> 0 | G25: =G26 -> 0 | I25: =I26 -> 0 | K25: =K26 -> 0 | M25: =M26 -> 0 | O25: =O26 -> 0
A26: 800 | B26: 710000 | C26: 904 | E26: 0 | G26: 0 | I26: 0 | K26: 0 | M26: 0 | O26: 0 | Q26: A définir, mais pas de recettes prévues à priori
D28: Recettes financières | E28: =E29+E30+E32 -> 1050 | G28: =G29+G30+G31+G32 -> 2022.33 | I28: =I29+I30+I32 -> 745.37 | K28: =K29+K30 -> 525 | M28: =M29+M30 -> 89.82 | O28: =O29+O30 -> 1133.79
A29: 900 | B29: 751000 | C29: 900 | D29: Intérêts sur compte épargne réglementé | E29: 0 | G29: 1.33 | I29: 4 | K29: 0 | M29: 53.82 | O29: 28.79
C30: 903 | D30: Recettes imprévues | E30: 0 | G30: 21 | I30: 141.37 | K30: 525 | M30: 36 | O30: 1105
C31: 304 | D31: Don (Junior Féminines) | G31: 100
A32: 400 | C32: 400 | D32: Formation arbitrage | E32: 1050 | G32: 1900 | I32: 600 | Q32: 70 x 15 candidats = 1050€)
D35: DEPENSES | E35: =E37+E65+E81+E109+E149+E152 -> 45930 | G35: =G37+G65+G81+G109+G149+G152 -> 59817.24 | I35: =I37+I65+I81+I109+I149+I152 -> 60566.31 | K35: =K37+K65+K81+K109+K149+K152 -> 58160.59 | M35: =M37+M65+M81+M109+M149+M152 -> 47071.2 | O35: =O37+O65+O81+O109+O149+O152 -> 45180.59
D37: FRAIS DE FONCTIONNEMENT DE L'ASBL | E37: =E38+E48+E52+E62 -> 4625 | G37: =G38+G48+G52+G62 -> 3247.83 | I37: =I38+I48+I52+I62 -> 1862.64 | K37: =K38+K48+K52+K62 -> 1249.33 | M37: =M38+M48+M52+M62 -> 542.52 | O37: =O38+O48+O52+O62 -> 2865.18
C38: 902 | D38: Indemnités bénévoles ou Frais remboursés aux membres du CA | E38: =SUM(E39:E46) -> 600 | G38: =SUM(G39:G46) -> 31 | I38: =SUM(I39:I46) -> 200 | K38: =SUM(K39:K46) -> 300 | M38: =SUM(M39:M46) -> 0 | O38: =SUM(O39:O46) -> 1050
A39: 902 | B39: 601000 | C39: 902 | D39: Présidence | K39: 0 | M39: 0 | O39: 0
A40: 902 | B40: 601100 | C40: 902 | D40: Secrétariat | K40: 0 | M40: 0 | O40: 50
A41: 902 | B41: 601200 | C41: 902 | D41: Trésorerie | K41: 100 | M41: 0 | O41: 200
A42: 902 | B42: 601300 | C42: 902 | D42: Direction des tournois | I42: 200 | K42: 200 | M42: 0 | O42: 200
A43: 902 | B43: 601500 | C43: 902 | D43: Ensemble des administrateurs | E43: 400 | G43: 0 | K43: 0 | M43: 0 | O43: 100
A44: 902 | B44: 601600 | C44: 902 | D44: Secrétariat au classement ELO | K44: 0 | M44: 0 | O44: 300
A45: 902 | B45: 601700 | C45: 902 | D45: Jeunesse | K45: 0 | M45: 0 | O45: 200
A46: 902 | B46: 601910 | C46: 902 | D46: Frais de déplacements & d'accueil aux réunions | E46: 200 | G46: 31 | K46: 0 | M46: 0 | O46: 0
C48: 901 | D48: Frais liés aux Assemblées Générales | E48: =SUM(E49:E50) -> 1050 | G48: =SUM(G49:G50) -> 880.2 | I48: =SUM(I49:I50) -> 593.1 | K48: =SUM(K49:K50) -> 261.8 | M48: =SUM(M49:M50) -> 163.96 | O48: =SUM(O49:O50) -> 384.82
A49: 901 | B49: 601910 | C49: 901 | D49: Frais de déplacements remboursés aux membres et administrateurs | E49: 850 | G49: 742.2 | I49: 464.6 | K49: 227.8 | M49: 163.96 | O49: 340.6
A50: 901 | B50: 601920 | C50: 901 | D50: Frais d'accueil aux réunions (location/boissons) | E50: 200 | G50: 138 | I50: 128.5 | K50: 34 | M50: 0 | O50: 44.22
C52: 900 | D52: Frais divers liés à la gestion | E52: =SUM(E53:E60) -> 2825 | G52: =SUM(G53:G60) -> 2336.63 | I52: =SUM(I53:I60) -> 908.55 | K52: =SUM(K53:K60) -> 581.36 | M52: =SUM(M53:M60) -> 378.56 | O52: =SUM(O53:O60) -> 734.97
A53: 900 | C53: 900 | D53: Fournitures diverses | E53: 200 | G53: 1043.25 | I53: 348.11 | K53: 193.74 | M53: 25.98 | O53: 0 | Q53: Dont set de 10 jeux et caisses transport
C54: 900 | D54: Achats de jeux | E54: 1030 | Q54: Amortissement en 2 ans
A55: 900 | C55: 900 | D55: Publications légales | E55: 170 | G55: 157.42 | I55: 140.24 | K55: 140.24 | M55: 133.58 | O55: 132.98
A56: 900 | B56: 601911 | C56: 900 | D56: Déplacements divers | E56: 1000 | G56: 936 | I56: 77.2 | K56: 0 | M56: 31.18 | O56: 68.8 | Q56: Déplacement admin. pour coméptitions
Q57: Certains frais sont des frais 2022-23 rentrés tardivement
B58: 606310 | C58: 900 | D58: Adhésion AIDEF | E58: 100 | G58: 100 | I58: 100 | K58: 100 | M58: 100 | O58: 100
B59: 609000 | C59: 900 | D59: Frais divers | E59: 200 | G59: 0 | I59: 150 | K59: 67.58 | M59: 6.31 | O59: 181.15
B60: 656000 | C60: 900 | D60: Frais bancaires | E60: 125 | G60: 99.96 | I60: 93 | K60: 79.8 | M60: 81.51 | O60: 252.04
A62: 903 | C62: 903 | D62: Dépenses imprévues | E62: =SUM(E63:E63) -> 150 | G62: =SUM(G63:G63) -> 0 | I62: =SUM(I63:I63) -> 160.99 | K62: =SUM(K63:K63) -> 106.17 | M62: =SUM(M63:M63) -> 0 | O62: =SUM(O63:O63) -> 695.39
C63: 903 | D63: Dépenses imprévues | E63: 150 | G63: 0 | I63: 160.99 | K63: 106.17 | M63: 0 | O63: 695.39
D65: Services rendus par l'ASBL | E65: =E66+E69+E75 -> 2390 | G65: =G66+G69+G73+G75 -> 4515.95 | I65: =I66+I69+I75 -> 2027.28 | K65: =K66+K69+K75 -> 619.09 | M65: =M66+M69+M75 -> 808.82 | O65: =O66+O69+O75 -> 757.94
C66: 205 | D66: Assurances | E66: =SUM(E67) -> 850 | G66: =SUM(G67) -> 623.16 | I66: =SUM(I67) -> 773.51 | K66: =SUM(K67) -> 530.09 | M66: 649.74 | O66: =SUM(O67) -> 654.42
A67: 205 | B67: 602000 | C67: 205 | D67: Assurance "Responsabilité Civile" de l'ASBL et de ses membres | E67: 850 | G67: 623.16 | I67: 773.51 | K67: 530.09 | M67: 530.09 | O67: 654.42 | Q67: =+ car nous avons plus de membres
A69: 103 | B69: 606000 | C69: 103 | D69: Site internet et outils informatiques | E69: =SUM(E70:E71) -> 385 | G69: =SUM(G71:G71) -> 552.39 | I69: =SUM(I71:I71) -> 171.4 | K69: =SUM(K71:K71) -> 89 | M69: =SUM(M71:M71) -> 159.08 | O69: =SUM(O71:O71) -> 103.52
C70: 103 | D70: Outil pour réunions - Stockage | E70: 135
C71: 103 | D71: Hébergement données, site internet; domaine FEFB | E71: 250 | G71: 552.39 | I71: 171.4 | K71: 89 | M71: 159.08 | O71: 103.52 | Q71: Hébergement site payé pour 2 ans
C73: 701 | D73: Formation animateurs | E73: 3000 | G73: 2108.78
B75: 606200 | C75: 400 | D75: Formation arbitrage | E75: =SUM(E76:E79) -> 1155 | G75: 1231.62 | I75: 1082.37 | K75: 0 | M75: 0 | O75: 0
C76: 400 | D76: Salle | E76: 400
C77: 400 | D77: Indemnités journalières | E77: 350
C78: 400 | D78: Licences Fide | E78: 300
C79: 400 | D79: Fournitures | E79: 105
D81: COMPETITIONS ORGANISEES PAR L'ASBL | E81: =E82+E90+E103 -> 9700 | G81: =G82+G90+G103 -> 7841.82 | I81: =I82+I90+I103 -> 8228.85 | K81: =K82+K90+K103 -> 4199.69 | M81: =M82+M90+M103 -> 2619.96 | O81: =O82+O90+O103 -> 3109.02
C82: 150 | D82: Intercercles traditionnels | E82: =SUM(E83:E88) -> 3350 | G82: =SUM(G83:G88) -> 3100.02 | I82: =SUM(I83:I88) -> 2654.1 | K82: =SUM(K83:K88) -> 2469.35 | M82: =SUM(M83:M88) -> 1500 | O82: =SUM(O83:O86) -> 1063
A83: 150 | B83: 605300 | C83: 150 | D83: Prix en argent attribués aux vainqueurs | E83: 2100 | G83: 2100 | I83: 1500 | K83: 1500 | M83: 0 | O83: 0
C84: 150 | D84: Dépenses homologations Fide | E84: 250 | G84: 220 | I84: 200 | K84: 181 | M84: 0 | O84: 863
A85: 150 | B85: 605400 | C85: 150 | D85: Subsides attribués aux clubs organisateurs | E85: 400 | G85: 400 | I85: 400 | K85: 400 | M85: 0 | O85: 200
A86: 150 | B86: 605400 | C86: 150 | D86: Frais d'arbitrage (indemnités journalières) et frais de déplacements | E86: 400 | G86: 261.02 | I86: 409.8 | K86: 283.6 | M86: 0 | O86: 0
C87: 150 | D87: Remboursement des inscriptions | K87: 0 | M87: 1500
C88: 150 | D88: Trophées | E88: 200 | G88: 119 | I88: 144.3 | K88: 104.75 | M88: 0
C90: 151 | D90: Inter-écoles | E90: =SUM(E91:E101) -> 3900 | G90: =SUM(G91:G101) -> 2878.8 | I90: =SUM(I91:I101) -> 3902.75 | K90: =SUM(K91:K101) -> 1230.34 | M90: =SUM(M91:M101) -> 819.96 | O90: =SUM(O91:O101) -> 1694.82
A91: 151 | B91: 604160 | C91: 151 | D91: Loyer de la salle (Andenne Arena ou autre) | E91: 700 | G91: 540 | I91: 676.5 | K91: 0 | M91: 0 | O91: 300
C92: 151 | D92: Frais postaux | K92: 0 | M92: 71.02
A93: 151 | B93: 604160 | C93: 151 | D93: Frais de mission et réception
A94: 151 | B94: 604160 | C94: 151 | D94: Boissons et sandwiches | E94: 200 | G94: 220.3 | I94: 525 | K94: 0 | M94: 0 | O94: 200
A95: 151 | C95: 151 | D95: Frais de déplacement | E95: 200 | G95: 0 | K95: 0 | M95: 36.84 | O95: 221.37
A96: 151 | B96: 604160 | C96: 151 | D96: Cadeaux offerts aux bénévoles | E96: 200 | G96: 115.47 | I96: 175.6 | K96: 150.66 | M96: 0
A97: 151 | B97: 604160 | C97: 151 | D97: Trophées et médailles | E97: 1100 | G97: 1090.83 | I97: 662.4 | K97: 866.76 | M97: 712.1 | O97: 625.95
A98: 151 | B98: 604160 | C98: 151 | D98: Prix aux écoles | E98: 900 | G98: 0 | I98: 1291.8
A99: 151 | B99: 604160 | C99: 151 | D99: Fournitures diverses (papiers, bics, etc.) | E99: 200 | G99: 32.2 | I99: 171.45 | K99: 62.92 | M99: 0 | O99: 97.5
C100: 151 | D100: Matières premières pour sandwiches | G100: 280
A101: 151 | B101: 604160 | C101: 151 | D101: Subsides aux organisateurs (provinciaux) | E101: 400 | G101: 600 | I101: 400 | K101: 150 | M101: 0 | O101: 250
C103: 152 | D103: Circuit JEF | E103: =SUM(E104:E107) -> 2450 | G103: =SUM(G104:G107) -> 1863 | I103: =SUM(I104:I107) -> 1672 | K103: =SUM(K104:K107) -> 500 | M103: =SUM(M104:M107) -> 300 | O103: =SUM(O104:O107) -> 351.2
A104: 152 | B104: 604120 | C104: 152 | D104: Subsides aux organisateurs (JEF) | E104: 900 | G104: 900 | I104: 900 | K104: 500 | M104: 300 | O104: 200
C105: 152 | D105: Défraiement arbitre principal | E105: 450 | Q105: Nouveauté (car Compétition FEFB)
C106: 152 | D106: Prix en formation | E106: 600 | G106: 600 | I106: 300
A107: 152 | B107: 604120 | C107: 152 | D107: Trophées | E107: 500 | G107: 363 | I107: 472 | K107: 0 | M107: 0 | O107: 151.2
D109: SUBSIDES ATTRIBUES PAR L'ASBL | E109: =E111+E114+E117+E121+E128+E133+E137 -> 20715 | G109: =G111+G114+G117+G121+G128+G133+G137 -> 16186.8 | I109: =I111+I114+I117+I121+I128+I133+I137 -> 19823.49 | K109: =K111+K114+K117+K121+K128+K133+K137 -> 21488 | M109: =M111+M114+M117+M121+M128+M133+M137 -> 17588.5 | O109: =O111+O114+O117+O121+O128+O133+O137 -> 14411.44
C111: 309 | D111: Ligues provinciales | E111: =SUM(E112) -> 0 | G111: =SUM(G112) -> 0 | I111: =SUM(I112) -> 4809 | K111: =SUM(K112) -> 2919 | M111: =SUM(M112) -> 4278 | O111: =SUM(O112) -> 3864
A112: 309 | B112: 600200 | C112: 309 | D112: Soutien financier par joueur | E112: 0 | G112: 0 | I112: 4809 | K112: 2919 | M112: 4278 | O112: 3864
C114: 300 | D114: Clubs | E114: =SUM(E115:E115) -> 3500 | G114: =SUM(G115:G115) -> 2700 | I114: =SUM(I115:I115) -> 2600 | K114: =SUM(K115:K115) -> 1644.5 | M114: =SUM(M115:M115) -> 997.15 | O114: =SUM(O115:O115) -> 900
A115: 300 | B115: 605900 | C115: 300 | D115: Soutien financier pour l'organisation de compétition "de renommée" | E115: 3500 | G115: 2700 | I115: 2600 | K115: 1644.5 | M115: 997.15 | O115: 900
C117: 155 | D117: Championnat de Belgique des Jeunes (CBJ) | E117: =SUM(E118:E119) -> 3200 | G117: =SUM(G118:G119) -> 790 | I117: =SUM(I118:I119) -> 2058.37 | K117: =SUM(K118:K119) -> 4211 | M117: =SUM(M118:M119) -> 0 | O117: =SUM(O118:O119) -> 50
A118: 155 | B118: 604140 | C118: 155 | D118: Frais forfaitaires remboursés aux coachs (indemnités journalières et frais de déplacement) | E118: 2300 | G118: 790 | I118: 2058.37 | K118: 3107 | M118: 0 | O118: 0 | Q118: Quid en 2024 ??
A119: 155 | B119: 604140 | C119: 155 | D119: Frais de logement des coachs | E119: 900 | G119: 0 | I119: 0 | K119: 1104 | M119: 0 | O119: 50
C121: 302 | D121: Championnat individuel jeunesse FEFB | E121: =SUM(E122:E126) -> 1255 | G121: =SUM(G122:G126) -> 1236 | I121: =SUM(I122:I126) -> 1200 | K121: =SUM(K122:K126) -> 1204 | M121: =SUM(M122:M126) -> 0 | O121: =SUM(O122:O126) -> 709
A122: 302 | B122: 604150 | C122: 302 | D122: Subsides au club organisateur | E122: 600 | G122: 600 | I122: 600 | K122: 750 | M122: 0 | O122: 150
A123: 302 | C123: 302 | D123: Subsides pour arbitrage | E123: 175 | G123: 175 | I123: 163.5
C124: 302 | D124: Dépenses homologation Fide | E124: 80 | G124: 61 | I124: 50 | K124: 54 | M124: 0 | O124: 44
C125: 302 | D125: Prix sous forme de bons de cours | E125: 0 | G125: 0 | I125: 0 | K125: 0 | M125: 0 | O125: 195
A126: 302 | B126: 604150 | C126: 302 | D126: Frais forfaitaires coachs (indemnités journalières et déplacement) | E126: 400 | G126: 400 | I126: 386.5 | K126: 400 | M126: 0 | O126: 320
C128: 310 | D128: Championnat individuel FEFB | E128: =SUM(E129:E131) -> 1960 | G128: =SUM(G129:G131) -> 1955.8 | I128: =SUM(I129:I131) -> 1952 | K128: =K129+K130+K131 -> 1671.5 | M128: =M129+M130+M131 -> 0 | O128: =SUM(O129:O131) -> 0
A129: 310 | B129: 605200 | C129: 310 | D129: Subsides au club organisateur | E129: 1500 | G129: 1500 | I129: 1500 | K129: 1500 | M129: 0 | O129: 0
C130: 310 | D130: Dépenses homologation Fide | E130: 110 | G130: 121 | I130: 110 | K130: 35 | M130: 0
A131: 310 | B131: 605200 | C131: 310 | D131: Frais forfaitaires arbitrage (indemnités et frais de déplacement) | E131: 350 | G131: 334.8 | I131: 342 | K131: 136.5 | M131: 0 | O131: 0
A133: 308 | B133: 605600 | C133: 308 | D133: Championnat de parties rapides FEFB | E133: =SUM(E134:E135) -> 550 | G133: =SUM(G134:G135) -> 550 | I133: =SUM(I134:I135) -> 550 | K133: =SUM(K134:K135) -> 400 | M133: =SUM(M134:M135) -> 0 | O133: =SUM(O134:O135) -> 270.44
C134: 308 | D134: Subsides au club organisateur | E134: 400 | G134: 400 | I134: 400 | K134: 400 | M134: 0 | O134: 200
C135: 308 | D135: Frais forfaitaires arbitrage (indemnités et frais de déplacement) | E135: 150 | G135: 150 | I135: 150 | K135: 0 | M135: 0 | O135: 70.44
C137: 3xx | D137: Autres subsides | E137: =SUM(E138:E147) -> 10250 | G137: =SUM(G138:G147) -> 8955 | I137: =SUM(I138:I147) -> 6654.12 | K137: =SUM(K138:K147) -> 9438 | M137: =SUM(M138:M147) -> 12313.35 | O137: =SUM(O138:O147) -> 8618
A138: 306 | B138: 604130 | C138: 306 | D138: Juniors : frais d'organisation de stages formation | E138: 1000 | G138: 1000 | I138: 1200.12 | K138: 3600 | M138: 0 | O138: 0 | Q138: "Elite" (900 Eur) Autres (500) Projets spécifiques (300)
A139: 304 | B139: 604190 | C139: 304 | D139: Juniors : soutiens individuels | E139: 3000 | G139: 3300 | I139: 3000 | K139: 2650 | M139: 250 | O139: 0
C140: 311 | D140: Juniors : Soutien financier par junior (base = rapport d'activités des clubs) | E140: 1200 | G140: 1170 | I140: 870 | K140: 350 | M140: 935 | O140: 950
A141: 305 | B141: 605700 | C141: 305 | D141: Seniors : subside(s) au(x) club(s) qualifié(s) pour la coupe d'Europe | E141: 1000 | G141: 0 | I141: 0 | K141: 0 | M141: 0 | O141: 2000
A142: 307 | B142: 605800 | C142: 307 | D142: Seniors : soutiens individuels | E142: 1000 | G142: 0 | I142: 0 | K142: 450 | M142: 0 | O142: 0
C143: 313 | D143: Subsides Tournois en ligne | E143: 0 | G143: 0 | K143: 0 | M143: 568.35
C144: 314 | D144: Subsides Projet formation | E144: 1000 | G144: 1400 | I144: 0 | K144: 600 | M144: 820
C145: 315 | D145: Subsides Licences G | E145: 1800 | G145: 1845 | I145: 1584 | K145: 1788 | M145: 0 | Q145: 132 en 2022-2023 (un peu moins que l'année précédente)
C146: 316 | D146: Subsides aux clubs | E146: 250 | G146: 240 | Q146: Pour circonstances exceptionnelles
A147: 312 | C147: 312 | D147: Tous : subsides Covid | E147: 0 | G147: 0 | I147: 0 | K147: 0 | M147: 9740 | O147: 5668
D149: Projet "Echecs au féminin" | E149: =E150 -> 2000 | G149: =G150 -> 563.4 | I149: =I150 -> 0 | K149: =K150 -> 0 | M149: =M150 -> 0 | O149: =O150 -> 0 | Q149: Projet mais on ne sait pas encore très bien où l'on va
A150: 800 | B150: 710000 | C150: 904 | D150: A définir | E150: 2000 | G150: 563.4 | K150: 0 | M150: 0 | O150: 0 | Q150: Essentiellement Formation spécifiquement féminine
D152: UTILISATION DES SUBSIDES MINISTERIELS | E152: =SUM(E153:E158) -> 6500 | G152: =SUM(G153:G158) -> 27461.44 | I152: =SUM(I153:I158) -> 28624.05 | K152: =SUM(K153:K158) -> 30604.48 | M152: =SUM(M153:M153) -> 25511.4 | O152: =SUM(O153:O153) -> 24037.01
A153: 800 | B153: 604161 | C153: 800 | D153: Missions résultantes du décret campagnes promotionnelles | E153: 0 | G153: 15186.08 | I153: 27372.06 | K153: 26595.38 | M153: 25511.4 | O153: 24037.01
C154: 802 | D154: Projet Spécial | E154: 0 | G154: 5636.37
C155: 803 | D155: Projet Spécial 2 | E155: 0 | G155: 6209.44
C156: 800 | D156: Report exercice 2023-2024 pour achat matériel écoles | E156: 5000
C157: 801 | D157: Projet "Vive les Echecs" | E157: 1500 | G157: 429.55 | I157: 1251.99 | Q157: Festival Out of the books - Dépenses excédentaires
C158: 800 | D158: Perte à prendre en charge vu les prestations/livraisons réalisées avant notification | E158: 0 | G158: 0 | I158: 0 | K158: 4009.1
N161: 9
M179: 9
G194: 9
